Department Family,Entity,Date,Expenses Type,Expense Area,Supplier,Transaction Number,  Total  ,
Department of Health,The Christie NHS Foundation Trust,13/08/2020,Clinical Recharge Q1,Clin Support & Spec Surgery,MANCHESTER UNIVERSITY NHS FT,0000647443,"28,212.00",
Department of Health,The Christie NHS Foundation Trust,27/08/2020,Drugs,Drugs,ALCURA UK LIMITED,0000649867,"78,669.10",
Department of Health,The Christie NHS Foundation Trust,13/08/2020,Drugs,Drugs,BAXTER HEALTHCARE LTD,0000648158,"84,461.16",
Department of Health,The Christie NHS Foundation Trust,13/08/2020,Drugs,Drugs,BAXTER HEALTHCARE LTD,0000648159,"269,421.10",
Department of Health,The Christie NHS Foundation Trust,13/08/2020,Drugs,Drugs,BAXTER HEALTHCARE LTD,0000648160,"76,663.87",
Department of Health,The Christie NHS Foundation Trust,13/08/2020,Drugs,Drugs,BAXTER HEALTHCARE LTD,0000648161,"93,823.20",
Department of Health,The Christie NHS Foundation Trust,20/08/2020,Drugs,Drugs,BAXTER HEALTHCARE LTD,0000648162,"95,753.26",
Department of Health,The Christie NHS Foundation Trust,20/08/2020,Drugs,Drugs,BAXTER HEALTHCARE LTD,0000648164,"93,940.87",
Department of Health,The Christie NHS Foundation Trust,20/08/2020,Drugs,Drugs,BAXTER HEALTHCARE LTD,0000648165,"52,226.56",
Department of Health,The Christie NHS Foundation Trust,20/08/2020,Drugs,Drugs,BAXTER HEALTHCARE LTD,0000648292,"164,678.60",
Department of Health,The Christie NHS Foundation Trust,20/08/2020,Drugs,Drugs,BAXTER HEALTHCARE LTD,0000648620,"102,108.20",
Department of Health,The Christie NHS Foundation Trust,20/08/2020,Drugs,Drugs,BAXTER HEALTHCARE LTD,0000648621,"94,172.99",
Department of Health,The Christie NHS Foundation Trust,20/08/2020,Drugs,Drugs,BAXTER HEALTHCARE LTD,0000648622,"71,432.56",
Department of Health,The Christie NHS Foundation Trust,20/08/2020,Drugs,Drugs,BAXTER HEALTHCARE LTD,0000648623,"74,443.32",
Department of Health,The Christie NHS Foundation Trust,03/08/2020,Drugs,Drugs,DD BAXTER HEALTHCARE LTD,0000649678,"351,380.40",
Department of Health,The Christie NHS Foundation Trust,27/08/2020,Drugs,Drugs,EAST CHESHIRE NHS TRUST,0000646078,"55,070.06",
Department of Health,The Christie NHS Foundation Trust,20/08/2020,Drugs,Drugs,LLOYDSPHARMACY CLINICAL HOMECARE,0000649514,"40,704.64",
Department of Health,The Christie NHS Foundation Trust,13/08/2020,Drugs,Drugs,MID CHESHIRE HOSPITALS NHS FT,0000639140,"182,060.10",
Department of Health,The Christie NHS Foundation Trust,20/08/2020,Drugs,Drugs,THE PENNINE ACUTE HOSPITAL NHS TRUST,0000635498,"41,563.15",
Department of Health,The Christie NHS Foundation Trust,20/08/2020,Drugs,Drugs,THE PENNINE ACUTE HOSPITAL NHS TRUST,0000635513,"38,304.53",
Department of Health,The Christie NHS Foundation Trust,20/08/2020,Drugs,Drugs,THE PENNINE ACUTE HOSPITAL NHS TRUST,0000632418,"73,337.82",
Department of Health,The Christie NHS Foundation Trust,20/08/2020,Drugs,Drugs,THE PENNINE ACUTE HOSPITAL NHS TRUST,0000626138,"32,266.73",
Department of Health,The Christie NHS Foundation Trust,20/08/2020,Drugs,Drugs,THE PENNINE ACUTE HOSPITAL NHS TRUST,0000520591,"32,844.61",
Department of Health,The Christie NHS Foundation Trust,20/08/2020,Drugs,Drugs,THE PENNINE ACUTE HOSPITAL NHS TRUST,0000569124,"35,805.28",
Department of Health,The Christie NHS Foundation Trust,20/08/2020,Drugs,Drugs,THE PENNINE ACUTE HOSPITAL NHS TRUST,0000571197,"39,529.22",
Department of Health,The Christie NHS Foundation Trust,20/08/2020,Drugs,Drugs,THE PENNINE ACUTE HOSPITAL NHS TRUST,0000571224,"27,608.22",
Department of Health,The Christie NHS Foundation Trust,20/08/2020,Drugs,Drugs,THE PENNINE ACUTE HOSPITAL NHS TRUST,0000630787,"66,926.26",
Department of Health,The Christie NHS Foundation Trust,20/08/2020,Drugs,Drugs,THE PENNINE ACUTE HOSPITAL NHS TRUST,0000637992,"31,671.52",
Department of Health,The Christie NHS Foundation Trust,20/08/2020,Drugs,Drugs,THE PENNINE ACUTE HOSPITAL NHS TRUST,0000605044,"35,681.06",
Department of Health,The Christie NHS Foundation Trust,20/08/2020,Drugs,Drugs,THE PENNINE ACUTE HOSPITAL NHS TRUST,0000605045,"40,190.05",
Department of Health,The Christie NHS Foundation Trust,20/08/2020,Drugs,Drugs,THE PENNINE ACUTE HOSPITAL NHS TRUST,0000609935,"38,527.41",
Department of Health,The Christie NHS Foundation Trust,20/08/2020,Drugs,Drugs,THE PENNINE ACUTE HOSPITAL NHS TRUST,0000615346,"44,962.03",
Department of Health,The Christie NHS Foundation Trust,20/08/2020,Drugs,Drugs,THE PENNINE ACUTE HOSPITAL NHS TRUST,0000617816,"52,307.21",
Department of Health,The Christie NHS Foundation Trust,20/08/2020,Drugs,Drugs,THE PENNINE ACUTE HOSPITAL NHS TRUST,0000630788,"40,127.95",
Department of Health,The Christie NHS Foundation Trust,06/08/2020,Service Contract, Network Services,BRAINLAB LTD,0000648358,"43,668.00",
Department of Health,The Christie NHS Foundation Trust,17/08/2020,Blood Products, Network Services,DD NHS BLOOD AND TRANSPLANT,0000647681,"188,268.30",
Department of Health,The Christie NHS Foundation Trust,27/08/2020,Electricity Invoice - July 2020, Network Services,EDF ENERGY,0000648928,"37,428.28",
Department of Health,The Christie NHS Foundation Trust,13/08/2020,Provision Charge, Network Services,MID CHESHIRE HOSPITALS NHS FT,0000641633,"47,536.50",
Department of Health,The Christie NHS Foundation Trust,13/08/2020,Provision Charge, Network Services,MID CHESHIRE HOSPITALS NHS FT,0000643746,"47,536.50",
Department of Health,The Christie NHS Foundation Trust,13/08/2020,Provision Charge, Network Services,MID CHESHIRE HOSPITALS NHS FT,0000645178,"47,536.50",
Department of Health,The Christie NHS Foundation Trust,13/08/2020,Radiology SLA, Network Services,SALFORD ROYAL HOSP NHS FT,0000644490,"36,555.00",
Department of Health,The Christie NHS Foundation Trust,20/08/2020,Hotel, Network Services,STAYCITY MANCHESTER LTD,0000648874,"127,012.60",
Department of Health,The Christie NHS Foundation Trust,20/08/2020,Service Contract, Network Services,VARIAN MEDICAL SYSTEMS UK LTD,0000649022,"212,086.50",
Department of Health,The Christie NHS Foundation Trust,13/08/2020,Facilities Management Services,Christie Pathology Partner,CPP FACILITIES LLP,0000649051,"195,041.00",
Department of Health,The Christie NHS Foundation Trust,06/08/2020,Facilities Management Services,Christie Pathology Partner,CPP FACILITIES LLP,0000648261,"180,459.90",
Department of Health,The Christie NHS Foundation Trust,13/08/2020,Pathology Testing Services,Christie Pathology Partner,THE CHRISTIE PATHOLOGY PARTNERSHIP LLP,0000649050,"410,408.10",
Department of Health,The Christie NHS Foundation Trust,06/08/2020,Pathology Testing Services,Christie Pathology Partner,THE CHRISTIE PATHOLOGY PARTNERSHIP LLP,0000648256,"379,726.40",
Department of Health,The Christie NHS Foundation Trust,13/08/2020,Consultancy Fees,Strategy,PURE dB LTD,0000648847,"22,000.00",
Department of Health,The Christie NHS Foundation Trust,27/08/2020,Annual Fees: Operating Revenue, Quality & Standards,CARE QUALITY COMMISSION,0000642890,"183,046.00",
Department of Health,The Christie NHS Foundation Trust,17/08/2020,NHS Resolution- August 2020, Quality & Standards,DD NHS LITIGATION AUTHORITY,0000649506,"152,871.30",
Department of Health,The Christie NHS Foundation Trust,07/08/2020,Rates, Estates & Facilities,DD M/CR CITY COUNCIL (RATES),0000649071,"79,484.00",
Department of Health,The Christie NHS Foundation Trust,06/08/2020,Supply of Electricity & Gas, Estates & Facilities,VITAL ENERGI SOLUTIONS LTD,0000648207,"44,541.16",
Department of Health,The Christie NHS Foundation Trust,11/08/2020,Payroll Services , Human Resources,DD NHS SHARED BUSINESS SERVICES LTD,0000645740,"27,623.76",
Department of Health,The Christie NHS Foundation Trust,27/08/2020,Medical Equipment, Christie Medical Physics,ADVANCED ACCELERATOR APPLICATIONS LTD,0000648573,"26,442.00",
Department of Health,The Christie NHS Foundation Trust,06/08/2020,Drugs, Christie Medical Physics,ALLIANCE MEDICAL RADIOPHARMACY LIMITED,0000648296,"32,124.06",
Department of Health,The Christie NHS Foundation Trust,06/08/2020,Cancer Reseach Trial, Research & Innovation,MANCHESTER UNIVERSITY NHS FT,0000647583,"25,282.00",
Department of Health,The Christie NHS Foundation Trust,20/08/2020,Health Innovation Subscription, Research & Innovation,MANCHESTER UNIVERSITY NHS FT,0000644224,"260,000.00",
Department of Health,The Christie NHS Foundation Trust,20/08/2020,Team Engagement Fee, Capital,AIRE LOGIC LIMITED,0000648852,"66,695.00",
Department of Health,The Christie NHS Foundation Trust,06/08/2020,Team Engagement Fee, Capital,AIRE LOGIC LIMITED,0000648518,"55,302.41",
Department of Health,The Christie NHS Foundation Trust,21/08/2020,Insurance Policy , Capital,GRIFFITHS & ARMOUR,0000649677,"31,987.20",
Department of Health,The Christie NHS Foundation Trust,13/08/2020,COVID-19 Works, Capital,INTEGRATED HEALTH PROJECTS,0000649126,"897,109.10",
Department of Health,The Christie NHS Foundation Trust,20/08/2020,COVID-19 Works, Capital,INTEGRATED HEALTH PROJECTS,0000649540,"542,367.90",
Department of Health,The Christie NHS Foundation Trust,20/08/2020,Construction Works, Capital,INTEGRATED HEALTH PROJECTS,0000649408,"1,344,959.00",
Department of Health,The Christie NHS Foundation Trust,13/08/2020,Medical Equipment, Capital,MANCHESTER UNIVERSITY NHS FT,0000647881,"57,477.00",
Department of Health,The Christie NHS Foundation Trust,20/08/2020,Software Quality Services, Digital Services,CIGNITI TECHNOLOGIES UK LTD,0000648922,"23,414.00",
Department of Health,The Christie NHS Foundation Trust,27/08/2020,Executive Programs Membership, Digital Services,GARTNER UK LIMITED,0000649722,"54,500.00",
Department of Health,The Christie NHS Foundation Trust,27/08/2020,Provision of Support Services,COVID-19,MAX 20 PROJECT SOLUTIONS LTD,0000649610,"40,000.00",
Department of Health,The Christie NHS Foundation Trust,07/07/2020,Rates,Estates & Facilities,DD M/CR CITY COUNCIL (RATES),0000647215,"79,484.00",
Department of Health,The Christie NHS Foundation Trust,02/07/2020,Supply of Electricity & Gas,Estates & Facilities,VITAL ENERGI SOLUTIONS LTD,0000644063,"49,524.54",
Department of Health,The Christie NHS Foundation Trust,16/07/2020,Supply of Electricity & Gas,Estates & Facilities,VITAL ENERGI SOLUTIONS LTD,0000645689,"55,573.12",
Department of Health,The Christie NHS Foundation Trust,02/07/2020,Supply of Electricity & Gas,Estates & Facilities,VITAL ENERGI SOLUTIONS LTD,0000644004,"61,116.80",
Department of Health,The Christie NHS Foundation Trust,23/07/2020,Supply of Electricity & Gas,Estates & Facilities,VITAL ENERGI SOLUTIONS LTD,0000647272,"66,586.36",
Department of Health,The Christie NHS Foundation Trust,16/07/2020,Supply of Electricity & Gas,Estates & Facilities,VITAL ENERGI SOLUTIONS LTD,0000645817,"50,960.14",
Department of Health,The Christie NHS Foundation Trust,15/07/2020,NHS Resolution - July 2020,Finance & Business Developm,NHS LITIGATION AUTHORITY,0000647447,"152,871.30",
Department of Health,The Christie NHS Foundation Trust,23/07/2020,Facilities Management Services,Network Services,CPP FACILITIES LLP,0000642247,"28,758.53",
Department of Health,The Christie NHS Foundation Trust,15/07/2020,Blood Products,Network Services,DD NHS BLOOD AND TRANSPLANT,0000645896,"188,268.30",
Department of Health,The Christie NHS Foundation Trust,09/07/2020,Electricity Invoice - June 2020,Network Services,EDF ENERGY,0000646814,"57,438.35",
Department of Health,The Christie NHS Foundation Trust,09/07/2020,Electricity Invoice - June 2020,Network Services,EDF ENERGY,0000646815,"35,814.85",
Department of Health,The Christie NHS Foundation Trust,30/07/2020,Medical Equipment,Network Services,PHILIPS HEALTHCARE,0000647357,"26,313.73",
Department of Health,The Christie NHS Foundation Trust,02/07/2020,Hotel,Network Services,STAYCITY MANCHESTER LTD,0000642915,"124,635.68","one of these will be for staff the other 2 for patients, can you  identify please"
Department of Health,The Christie NHS Foundation Trust,30/07/2020,Hotel,Network Services,STAYCITY MANCHESTER LTD,0000647540,"177,328.08",
Department of Health,The Christie NHS Foundation Trust,30/07/2020,Hotel,Network Services,STAYCITY MANCHESTER LTD,0000647545,"186,327.52",
Department of Health,The Christie NHS Foundation Trust,16/07/2020,Blood Cancer Treatment,Network Services,THE ANTHONY NOLAN BONE MARROW,0000646759,"51,418.00",
Department of Health,The Christie NHS Foundation Trust,09/07/2020,Consultancy Fees,Strategy,PURE dB LTD,0000646977,"26,400.00",
Department of Health,The Christie NHS Foundation Trust,02/07/2020,All Wards & Departments,The Christie NHS FT Balance,NHS SUPPLY CHAIN,0000645771,"40,467.74",
Department of Health,The Christie NHS Foundation Trust,16/07/2020,All Wards & Departments,The Christie NHS FT Balance,NHS SUPPLY CHAIN,0000646690,"34,129.67",
Department of Health,The Christie NHS Foundation Trust,09/07/2020,All Wards & Departments,The Christie NHS FT Balance,NHS SUPPLY CHAIN,0000646691,"47,076.06",
Department of Health,The Christie NHS Foundation Trust,09/07/2020,All Wards & Departments,The Christie NHS FT Balance,NHS SUPPLY CHAIN,0000646692,"45,503.89",
Department of Health,The Christie NHS Foundation Trust,30/07/2020,All Wards & Departments,The Christie NHS FT Balance,NHS SUPPLY CHAIN,0000647189,"53,326.37",
